bitfinex/quotes_SOLUSD_20260113
["timestamp","ask_amount","ask_price","bid_price","bid_amount"]
[1768342839131,7.02454521,147.06,146.99,8.12677212]
[1768342839347,0.70257312,147.06,146.99,14.44874421]
[1768342839542,0.70257312,147.06,146.99,8.12677212]
[1768342839543,7.02454521,147.06,146.99,8.12677212]
[1768342839855,7.02589387,147.05,146.99,25.13473184]
[1768342840052,0.70392178,147.05,146.99,31.45670393]
[1768342840453,7.0259075,147.08,147.02,7.50132673]
[1768342840631,0.70257312,147.1,147.03,6.32197209]
[1768342840953,7.02589387,147.09,147.03,6.32197209]
[1768342841156,7.02589387,147.09,147.02,36.72581591]
[1768342841647,0.70393541,147.12,147.04,7.02150315]
[1768342841959,7.0259075,147.12,147.05,7.02150315]
[1768342842252,7.0259075,147.12,147.06,12.22]
[1768342842427,7.0259075,147.12,147.06,19.01965792]
[1768342842632,6.32197209,147.11,147.06,12.22]
[1768342842945,7.02588052,147.08,147.03,19.02120195]
[1768342843146,7.02588052,147.08,147.03,6.80120195]
[1768342843352,7.02458488,147.05,146.99,1.32365581]
[1768342843533,6.32197209,147.1,146.99,8.12677531]
[1768342843734,6.32197209,147.04,146.99,8.12677531]
[1768342844053,6.32197209,147.05,146.99,8.12677531]
[1768342844237,6.32197209,147.04,146.99,8.12677531]
[1768342844556,6.32197209,147.1,146.99,1.32365581]
[1768342844557,6.32197209,147.03,146.99,1.32365581]
[1768342844741,6.32197209,147.1,146.99,8.12666989]
[1768342844742,6.32197209,147.04,146.99,8.12666989]
[1768342844944,6.2919721,147.04,146.99,8.12666989]
[1768342845141,6.32197209,147.02,146.99,1.32365581]
[1768342845936,0.60972272,147.05,146.99,8.12679958]
[1768342846158,6.32197209,147.02,146.99,8.12679958]
[1768342846751,6.32197209,147.0,146.99,1.32365581]
[1768342847052,6.32197209,147.0,146.96,0.2]
[1768342847242,0.10405615,147.02,146.96,0.2]
[1768342847433,6.32197209,146.99,146.96,0.2]
[1768342847833,6.32197209,146.97,146.96,0.2]
[1768342848259,6.32197209,146.97,146.93,0.69953106]
[1768342848558,6.32197209,146.97,146.9,29.23803658]
[1768342848559,12.379,147.05,146.97,0.69953106]
[1768342848856,12.28,147.05,147.0,0.69953106]
[1768342849055,34.1138945,147.18,146.97,23.81423306]
[1768342849056,0.40972272,147.19,147.03,0.69953106]
[1768342849234,0.40661549,147.15,147.06,0.69953106]
[1768342849439,6.32197209,147.11,147.04,7.02150315]
[1768342849640,0.4035701,147.13,147.05,0.69953106]
[1768342849846,6.32197209,147.11,147.05,0.69953106]
[1768342850034,6.32197209,147.1,147.05,0.69953106]
[1768342850236,6.32197209,147.08,147.03,0.69953106]
[1768342850431,0.10804603,147.09,147.01,6.80225834]
[1768342850639,6.32197209,147.04,146.98,0.69953106]
[1768342850846,6.32197209,147.01,146.96,0.69953106]
[1768342851044,6.32197209,147.01,146.9,0.68073519]
[1768342851045,0.11928936,147.01,146.93,0.69953106]
[1768342851241,6.32197209,147.01,146.95,0.69953106]
[1768342851460,6.32197209,146.98,146.92,0.69953106]
[1768342851650,0.4035701,146.98,146.89,0.89953106]
[1768342851847,6.32197209,146.94,146.9,0.69953106]
[1768342852045,6.32197209,146.92,146.89,0.2]
[1768342852556,0.40058531,146.95,146.89,0.2]
[1768342852743,6.32197209,146.91,146.89,0.2]
[1768342852948,0.10804603,146.94,146.89,0.2]
[1768342853161,6.32197209,146.9,146.84,0.2]
[1768342853370,0.19875294,146.9,146.84,0.2]
[1768342853743,6.32197209,146.86,146.84,0.2]
[1768342854062,0.19875294,146.9,146.84,0.2]
[1768342854250,6.32197209,146.87,146.84,0.2]
[1768342854454,6.32197209,146.86,146.84,0.2]
[1768342854936,6.9055189,146.92,146.84,0.89953106]
[1768342855136,0.20972272,146.95,146.85,0.69953106]
[1768342855351,6.32197209,146.9,146.85,0.69953106]
[1768342855748,0.099,146.93,146.85,0.69953106]
[1768342855960,6.32197209,146.88,146.85,0.69953106]
[1768342856164,6.32197209,146.89,146.85,0.69953106]
[1768342857040,7.01430807,146.96,146.86,0.69953106]
[1768342857245,6.32197209,146.89,146.86,0.69953106]
[1768342857637,6.32197209,146.89,146.84,0.2]
[1768342857638,6.32197209,146.87,146.84,0.89953106]
[1768342857840,0.10009615,146.92,146.84,0.89953106]
[1768342857841,6.32197209,146.86,146.84,0.89953106]
[1768342858058,6.32197209,146.87,146.84,0.89953106]
[1768342858269,0.10009615,146.92,146.84,0.89953106]
[1768342858569,0.2075303,146.91,146.84,0.89953106]
[1768342858759,6.32197209,146.86,146.84,0.2]
[1768342858961,6.32197209,146.85,146.84,0.2]
[1768342859867,0.20861549,146.92,146.84,0.2]
[1768342860059,6.32197209,146.86,146.84,0.2]
[1768342860257,6.32197209,146.87,146.84,0.89953106]
[1768342860567,0.10009615,146.91,146.84,0.2]
[1768342860870,6.42038768,146.95,146.85,0.69953106]
[1768342861164,0.20972272,146.95,146.86,0.69953106]
[1768342861348,7.0151356,146.95,146.86,0.69953106]
[1768342861548,6.80365071,146.98,146.88,0.69953106]
[1768342861773,6.32197209,146.96,146.9,0.69953106]
[1768342862362,6.32197209,146.97,146.91,0.69953106]
[1768342862569,34.00524541,147.04,146.91,0.69953106]
[1768342862570,0.20861549,147.06,146.96,0.69953106]
[1768342862748,6.32197209,147.02,146.96,0.69953106]
[1768342863344,0.10009615,147.05,146.96,0.69953106]
[1768342864367,0.10009615,147.05,146.93,6.80588987]
[1768342864568,10.30654165,146.95,146.9,6.80723227]
[1768342864779,0.10222345,146.99,146.91,0.69953106]
[1768342865160,10.30654165,146.96,146.91,0.69953106]
[1768342865362,0.10222345,146.99,146.91,0.69953106]
[1768342865677,10.30654165,146.96,146.92,0.72183336]
[1768342865975,10.30654165,146.96,146.9,0.72183336]
[1768342866352,10.30654165,146.98,146.92,0.72183336]
[1768342866552,10.30654165,146.96,146.92,0.72183336]
[1768342866775,10.30654165,146.97,146.93,0.72183336]
[1768342867376,7.01203004,147.01,146.93,0.72183336]
[1768342867759,10.30654165,146.96,146.93,0.72183336]
[1768342867960,0.099,147.0,146.93,0.72183336]
[1768342868169,10.30654165,146.97,146.93,0.72183336]
[1768342868476,6.21066496,147.04,146.92,6.80633285]
[1768342868477,0.20972272,147.02,146.94,11.02837501]
[1768342868668,0.20972272,147.04,146.96,0.72183336]
[1768342868865,0.20972272,147.07,146.96,0.72183336]
[1768342869066,10.30654165,147.03,146.97,0.72183336]
[1768342869577,0.20972272,147.07,146.97,0.72183336]
[1768342869784,10.30654165,147.02,146.97,0.72183336]
[1768342869983,0.10009615,147.04,146.96,0.72183336]
[1768342870170,0.20972272,147.06,146.96,0.72183336]
[1768342870573,10.30654165,147.03,146.98,6.80364675]
[1768342870870,10.30654165,147.03,146.99,0.72183336]
[1768342871578,6.79957109,147.07,146.99,0.72183336]
[1768342871579,19.30888394,147.08,146.99,0.72183336]
[1768342871751,12.3,147.08,147.0,0.72183336]
[1768342871961,10.30654165,147.06,147.01,0.72183336]
[1768342872269,10.30654165,147.07,147.01,0.72183336]
[1768342872478,10.30654165,147.08,147.02,0.72183336]
[1768342872679,6.79733002,147.12,147.02,7.52356681]
[1768342872870,10.30654165,147.08,147.03,0.72183336]
[1768342873066,10.30654165,147.05,147.03,0.72183336]
[1768342873372,10.30654165,147.1,146.97,0.72183336]
[1768342873373,10.30654165,147.04,146.97,0.72183336]
[1768342873677,0.71047256,147.04,146.96,0.72183336]
[1768342873977,0.71047256,147.04,146.93,19.0456035]
[1768342873978,10.30654165,146.97,146.93,0.72183336]
[1768342874183,10.30654165,146.95,146.93,0.72183336]
[1768342874362,0.70276076,147.0,146.93,0.72183336]
[1768342874561,4.89604582,146.99,146.93,0.72183336]
[1768342874765,10.30654165,146.94,146.93,0.72183336]
[1768342875180,10.30654165,146.95,146.93,0.72183336]
[1768342875676,10.30654165,146.94,146.93,0.72183336]
[1768342875880,7.50588167,147.0,146.93,0.72183336]
[1768342876073,10.30654165,146.94,146.93,0.72183336]
[1768342877282,0.70276076,147.0,146.93,0.72183336]
[1768342877585,6.80233247,147.01,146.93,0.72183336]
[1768342877766,6.9319872,147.03,146.94,0.7088703]
[1768342877767,13.73371308,147.03,146.94,0.7088703]
[1768342877973,10.30654165,146.98,146.94,0.7088703]
[1768342878483,10.30654165,146.99,146.94,0.7088703]
[1768342878688,6.80172588,147.03,146.94,0.7088703]
[1768342878861,10.30654165,147.02,146.96,0.7088703]
[1768342879266,0.31433592,147.1,146.99,0.7088703]
[1768342879481,10.30654165,147.03,146.99,0.7088703]
[1768342879685,10.30654165,147.01,146.96,12.24]
[1768342879982,10.30654165,147.0,146.95,0.7088703]
[1768342880290,0.70923434,147.04,146.95,0.7088703]
[1768342880291,10.30654165,147.01,146.95,0.7088703]
[1768342880670,10.30654165,147.0,146.95,7.51386739]
[1768342880865,0.32223349,147.02,146.95,0.7088703]
[1768342880866,10.30654165,146.99,146.95,0.7088703]
[1768342881390,10.30654165,147.0,146.95,7.51381034]
[1768342881686,10.30654165,146.99,146.95,0.7088703]
[1768342882801,10.30654165,147.0,146.95,7.51363716]
[1768342882998,0.32223349,147.02,146.95,7.51363716]
[1768342883293,11.00366371,147.06,146.95,0.7088703]
[1768342883673,10.30654165,147.01,146.95,0.7088703]
[1768342883870,10.30654165,147.01,146.96,0.7088703]
[1768342884091,22.58654165,147.1,146.97,12.24]
[1768342884092,10.30654165,147.02,146.97,12.24]
[1768342884390,10.30654165,146.99,146.87,34.04250263]
[1768342884573,10.30654165,146.93,146.84,0.2]
[1768342884887,10.30654165,146.91,146.84,0.2]
[1768342885071,0.71996316,146.93,146.84,12.44]
[1768342885273,0.71996316,146.93,146.85,6.8096308]
[1768342885473,0.69303691,146.94,146.85,6.8096308]
[1768342885665,10.30654165,146.91,146.85,6.8096308]
[1768342885871,0.72132224,146.98,146.85,23.83380512]
[1768342886067,10.30654165,146.93,146.86,10.30654165]
[1768342886272,0.72103939,146.95,146.87,12.24]
[1768342886472,10.30654165,146.93,146.87,12.9488703]
[1768342886690,10.30654165,146.92,146.87,12.9488703]
[1768342886891,10.30654165,146.91,146.88,6.80827886]
[1768342887476,10.30654165,146.92,146.88,6.80827886]
[1768342887785,0.69331693,146.94,146.88,7.51714916]
[1768342887988,10.30654165,146.94,146.89,0.7088703]
[1768342888288,0.72132224,146.97,146.89,0.7088703]
[1768342888587,11.02786389,146.99,146.93,0.7088703]
[1768342888793,10.30654165,146.98,146.93,0.7088703]
[1768342889087,11.02786389,146.99,146.93,7.51461639]
[1768342889792,0.72132224,147.02,146.94,11.01541195]
[1768342889987,12.3,147.05,146.94,11.01541195]
[1768342889988,10.99957856,147.01,146.95,0.7088703]
[1768342890189,10.30654165,147.02,146.95,0.7088703]
[1768342890408,10.30654165,147.02,146.95,11.01541195]
[1768342890988,10.30654165,147.02,146.96,6.80457267]
[1768342891286,0.72132224,147.05,146.99,0.7088703]
[1768342891486,10.30654165,147.04,146.99,0.7088703]
[1768342891691,0.72132224,147.07,147.0,0.7088703]
[1768342891988,0.72132224,147.07,147.01,0.7088703]
[1768342892194,10.30654165,147.05,147.01,0.7088703]
[1768342892571,10.30654165,147.08,147.02,0.7088703]
[1768342892774,0.72132224,147.15,147.06,11.01541195]
[1768342893088,10.30654165,147.13,147.08,0.7088703]
[1768342893390,0.69303691,147.14,147.08,6.79900609]
[1768342893582,10.30654165,147.13,147.07,6.79938384]
[1768342893779,10.30654165,147.12,147.07,6.79938384]
[1768342893983,0.69303691,147.14,147.07,6.79938384]
[1768342894383,10.30654165,147.15,147.09,0.7088703]
[1768342894694,10.30654165,147.16,147.09,11.01541195]
[1768342894991,10.30654165,147.14,147.1,6.79809653]
[1768342895393,10.30654165,147.14,147.09,7.50732856]
[1768342895710,0.69303691,147.17,147.09,7.50732856]
[1768342896074,10.99957856,147.17,147.11,0.68528497]
[1768342896895,0.69303691,147.17,147.11,0.68528497]
[1768342897097,0.1,147.19,147.17,0.68528497]
[1768342897601,0.1,147.22,147.17,0.68528497]
[1768342898393,10.40654165,147.22,147.17,0.68528497]
[1768342898599,0.1,147.22,147.17,0.68528497]
[1768342898985,0.1,147.22,147.17,7.47992869]
[1768342899181,0.1,147.22,147.17,6.7947987]
[1768342899407,10.30654165,147.2,147.14,0.68528497]
[1768342899596,0.77913877,147.22,147.16,0.68528497]
[1768342899802,10.30654165,147.17,147.13,0.68528497]
[1768342899991,10.30654165,147.14,147.1,7.48329394]
[1768342900187,10.30654165,147.11,147.06,0.68528497]
[1768342900386,0.67913877,147.13,147.06,0.68528497]
[1768342900387,10.30654165,147.08,147.06,0.68528497]
[1768342900595,0.67913877,147.15,147.07,0.68528497]
[1768342900885,10.30654165,147.1,147.07,7.48467489]
[1768342901085,10.30654165,147.09,147.07,0.68528497]
[1768342901607,10.30654165,147.08,147.05,6.80033189]
[1768342901783,0.67913877,147.16,147.07,0.68528497]
[1768342901985,10.30654165,147.14,147.08,10.30654165]
[1768342902184,12.28,147.17,147.07,24.48335891]
[1768342902185,0.67913877,147.13,147.07,24.48335891]
[1768342902406,0.67913877,147.16,147.09,0.68528497]
[1768342902798,10.30654165,147.13,147.09,0.68528497]
[1768342903106,10.30654165,147.12,147.06,0.68528497]
[1768342903306,0.16145117,147.13,147.06,6.79968389]
[1768342903611,10.30654165,147.1,147.06,6.79968389]
[1768342904189,0.67913877,147.15,147.07,0.68528497]
[1768342904388,0.67913877,147.15,147.08,6.79867335]
[1768342904704,10.30654165,147.11,147.08,6.79867335]
[1768342904891,10.30654165,147.1,147.06,6.79964181]
[1768342905296,0.67913877,147.13,147.06,6.79964181]
[1768342905498,10.30654165,147.11,147.06,7.48492678]
[1768342905705,0.67913877,147.13,147.06,0.68528497]
[1768342905706,10.30654165,147.1,147.06,0.68528497]
[1768342905913,0.67913877,147.11,147.03,7.48648931]
[1768342906084,0.67913877,147.09,147.03,0.68528497]
[1768342906290,6.23432763,147.16,147.05,6.80021809]
[1768342906291,0.67913877,147.12,147.05,6.80021809]
[1768342906491,0.67913877,147.19,147.09,0.68528497]
[1768342906704,10.30654165,147.15,147.09,0.68528497]
[1768342907207,10.30654165,147.15,147.1,6.79809653]
[1768342907404,10.30654165,147.14,147.09,0.68528497]
[1768342907602,10.30654165,147.13,147.07,0.68528497]
[1768342907803,0.67913877,147.15,147.07,0.68528497]
[1768342907804,10.30654165,147.12,147.07,0.68528497]
[1768342908111,10.30654165,147.11,147.06,0.68528497]
[1768342908604,10.30654165,147.1,147.06,0.68528497]
[1768342908807,10.30654165,147.1,147.05,6.80027496]
[1768342908808,10.30654165,147.07,147.03,0.68528497]
[1768342909107,10.30654165,147.11,147.06,6.7999456]
[1768342909307,23.66611423,147.18,147.07,0.68528497]
[1768342909308,10.30654165,147.13,147.07,0.68528497]
[1768342909514,10.30654165,147.12,147.07,0.68528497]
[1768342910017,0.67913877,147.14,147.07,0.68528497]
[1768342910306,10.30654165,147.12,147.07,0.68528497]
[1768342911119,10.30654165,147.09,147.06,6.7999456]
[1768342911291,0.67913877,147.12,147.05,7.48569299]
[1768342911292,10.30654165,147.1,147.05,7.48569299]
[1768342911607,10.30654165,147.07,147.03,7.48656371]
[1768342911814,10.30654165,147.07,147.03,6.80128661]
[1768342912190,10.30654165,147.05,147.02,6.80144611]
[1768342912405,10.30654165,147.03,146.98,17.69413943]
[1768342912710,0.67913877,147.06,146.99,0.68528497]
[1768342912902,10.30654165,147.04,146.99,0.68528497]
[1768342913299,0.67913877,147.04,146.94,0.68528497]
[1768342913491,0.67913877,147.04,146.81,0.2]
[1768342913492,10.30654165,146.95,146.91,0.68528497]
[1768342913824,10.30654165,146.96,146.91,0.68528497]
[1768342914407,10.30654165,146.95,146.91,0.68528497]
[1768342914612,10.30654165,146.95,146.92,6.80642526]
[1768342914998,10.30654165,146.96,146.91,7.4920233]
[1768342915218,0.67913877,146.99,146.91,24.50924472]
[1768342915513,10.30654165,146.95,146.91,24.50924472]
[1768342916093,10.30654165,146.94,146.91,6.80673833]
[1768342916298,10.30654165,146.95,146.91,6.80673833]
[1768342916494,0.67913877,147.0,146.92,0.68528497]
[1768342916800,10.30654165,146.98,146.93,6.80596202]
[1768342917008,10.30654165,146.97,146.93,6.80596202]
[1768342917913,10.98568042,146.99,146.93,29.33250367]
[1768342918090,10.30654165,146.98,146.93,19.02596202]
[1768342918293,10.98568042,146.99,146.93,17.11250367]
[1768342918710,10.98568042,146.99,146.93,6.80596202]
[1768342919415,0.67913877,147.05,146.94,0.02864047]
[1768342919617,0.67913877,147.03,146.94,12.24864047]
[1768342919807,10.98568042,147.02,146.94,12.24864047]
[1768342920002,23.79819132,147.07,146.93,23.82086707]
[1768342920003,10.30654165,146.99,146.93,23.82086707]
[1768342920207,10.98568042,146.99,146.93,23.82086707]
[1768342920403,0.67913877,146.98,146.93,34.12740872]
[1768342920713,0.67913877,146.97,146.95,6.80503572]
[1768342921104,18.9601107,147.08,146.95,6.80503572]
[1768342921105,0.67913877,147.09,146.97,0.02864047]
[1768342921301,0.67913877,147.05,147.0,10.30654165]
[1768342921617,12.28,147.08,146.96,10.30654165]
[1768342921814,36.06202078,147.17,146.99,10.30654165]
[1768342922025,10.30654165,147.07,146.98,0.68528497]
[1768342922213,10.30654165,147.07,147.0,10.30654165]
[1768342922412,10.30654165,147.01,146.95,6.80503572]
[1768342922607,10.30654165,146.99,146.95,6.80503572]
[1768342922804,10.30654165,146.99,146.94,6.80549884]
[1768342923113,18.9601107,147.07,146.93,6.80580243]
[1768342923317,6.3446035,146.98,146.93,6.80580243]
[1768342923709,0.67913877,147.06,146.93,6.80580243]
[1768342923899,0.67913877,147.04,146.94,6.3446035]
[1768342924098,0.67913877,147.04,146.93,6.80580243]
[1768342924099,0.67913877,147.04,146.93,13.15040593]
[1768342924294,6.3446035,147.01,146.96,6.3446035]
[1768342924495,0.67913877,147.01,146.95,7.02988847]
[1768342924701,6.3446035,147.01,146.96,6.80457267]
[1768342924900,0.67913877,147.03,146.96,13.14917617]
[1768342925212,6.3446035,147.02,146.96,13.14917617]
[1768342925413,6.3446035,147.02,146.96,6.80457267]
[1768342925719,0.66782435,147.02,146.97,6.3446035]
[1768342925921,16.99678802,147.09,146.97,6.3446035]
[1768342925922,0.66782435,147.05,147.0,6.3446035]
[1768342926100,0.66782435,147.07,147.01,6.3446035]
[1768342926420,7.01242785,147.06,147.01,6.3446035]
[1768342926609,7.01242785,147.06,147.0,6.3446035]
[1768342927114,6.3446035,147.02,146.94,0.68222106]
[1768342927313,7.01242785,147.01,146.94,12.92222106]
[1768342927623,6.7985587,147.09,146.94,17.01332355]
[1768342927624,7.01242785,147.0,146.94,17.01332355]
[1768342927811,6.3446035,146.99,146.95,6.80473198]
[1768342928117,0.66782435,147.0,146.95,6.80473198]
[1768342928118,7.01242785,147.0,146.95,6.80473198]
[1768342928322,0.66782435,147.03,146.95,23.81732129]
[1768342928512,7.01242785,147.01,146.95,30.16192479]
[1768342928706,0.66782435,147.01,146.96,6.3446035]
[1768342928909,12.28,147.08,146.97,13.14871318]
[1768342928910,0.66782435,147.03,146.97,13.14871318]
[1768342929110,7.01242785,147.02,146.97,6.80410968]
[1768342929425,0.66782435,147.02,146.97,13.14871318]
[1768342929600,0.66782435,147.05,146.99,6.3446035]
[1768342929800,7.01242785,147.05,146.98,0.68222106]
[1768342930005,6.3446035,147.04,146.99,6.3446035]
[1768342930527,6.3446035,147.04,146.98,6.3446035]
[1768342930528,0.66782435,147.04,146.98,6.3446035]
[1768342930818,0.66782435,147.01,146.97,6.80410968]
[1768342931032,7.01242785,147.0,146.96,6.80455647]
[1768342931621,0.66782435,147.03,146.96,6.80455647]
[1768342931819,0.66782435,147.02,146.96,6.80455647]
[1768342932011,6.3446035,147.01,146.96,6.80455647]
[1768342932398,7.01242785,147.01,146.96,6.80455647]
[1768342932599,7.01242785,147.01,146.91,6.6801107]
[1768342932600,0.66782435,146.96,146.84,0.2]
[1768342932823,0.66782435,146.94,146.86,17.02198796]
[1768342933012,0.66782435,146.93,146.86,17.02198796]
[1768342933212,0.66782435,146.93,146.89,6.3446035]
[1768342933431,0.66782435,146.93,146.86,17.02198796]
[1768342933807,0.66782435,146.93,146.88,6.3446035]
[1768342934017,0.66782435,146.93,146.87,6.3446035]
[1768342934216,0.66782435,146.92,146.87,6.3446035]
[1768342934616,0.66782435,146.89,146.84,7.01004049]
[1768342935025,0.66782435,146.89,146.84,6.5446035]
[1768342935211,0.66782435,146.87,146.84,0.2]
[1768342935406,0.66782435,146.86,146.84,0.2]
[1768342935607,0.66782435,146.85,146.81,0.2]
[1768342935810,0.66782435,146.85,146.82,6.81094918]
[1768342936336,0.66782435,146.85,146.81,0.2]
[1768342936724,0.66782435,146.91,146.81,6.5446035]
[1768342936923,0.66999229,146.93,146.9,6.3446035]
[1768342937132,6.3446035,147.0,146.92,6.3446035]
[1768342937325,12.3,147.04,146.9,18.79793291]
[1768342937515,4.97723287,147.03,146.9,0.21332941]
[1768342937714,12.3,147.04,146.94,6.3446035]
[1768342937715,6.3446035,147.0,146.94,6.3446035]
[1768342938526,12.3,147.04,146.96,6.3446035]
[1768342938839,6.3446035,147.02,146.92,23.82248842]
[1768342939023,0.66999229,147.01,146.95,6.3446035]
[1768342939219,0.66999229,147.01,146.96,6.3446035]
[1768342939417,0.66999229,147.01,146.92,23.82248842]
[1768342939939,0.66999229,147.01,146.95,6.3446035]
[1768342940157,0.66999229,147.01,146.92,36.06248842]
[1768342940158,0.66999229,147.0,146.92,23.82248842]
[1768342940445,0.66999229,146.99,146.92,36.06248842]
[1768342940743,0.66999229,146.99,146.92,36.27581783]
[1768342940925,0.66999229,146.99,146.95,6.80490171]
[1768342941128,0.66999229,147.02,146.93,17.01414513]
[1768342941325,0.66999229,147.01,146.96,6.3446035]
[1768342941539,0.66999229,147.04,146.98,6.3446035]
[1768342941720,0.66999229,147.04,146.96,6.80450643]
[1768342942040,0.66999229,147.03,146.96,6.80450643]
[1768342942249,6.3446035,147.04,146.95,0.21332941]
[1768342942250,0.66999229,147.0,146.95,6.3446035]
[1768342942626,0.66999229,146.96,146.9,6.3446035]
[1768342942951,0.66999229,146.96,146.91,6.80650691]
[1768342943441,0.66999229,146.98,146.91,30.16833183]
[1768342943750,7.01459579,147.0,146.93,6.3446035]
[1768342943948,0.66999229,146.93,146.82,31.17886396]
[1768342944245,6.3446035,147.0,146.85,6.3446035]
[1768342944246,6.31460346,146.91,146.85,6.3446035]
[1768342944449,6.31460346,146.91,146.82,0.21332941]
[1768342944450,6.3446035,146.93,146.87,6.3446035]
[1768342944646,12.85564588,147.0,146.84,34.05056987]
[1768342944831,6.3446035,146.94,146.87,23.36561496]
[1768342945029,4.94890371,146.99,146.89,6.3446035]
[1768342945030,6.3446035,146.95,146.89,6.3446035]
[1768342945250,6.3446035,146.95,146.88,23.36420289]
[1768342945445,6.3446035,146.95,146.88,17.01959939]
[1768342945640,6.3446035,146.95,146.88,23.36420289]
[1768342945838,6.3446035,146.94,146.88,17.01959939]
[1768342946043,7.01459579,146.94,146.87,13.15334592]
[1768342946346,7.01459579,146.94,146.88,6.3446035]
[1768342946854,0.66999229,146.94,146.88,6.3446035]
[1768342947026,7.01459579,146.94,146.89,6.80781537]
[1768342947228,0.66999229,146.94,146.89,13.15241887]
[1768342947665,6.3446035,146.98,146.89,23.8273538]
[1768342947873,0.66999229,146.95,146.89,6.80781537]
[1768342948160,6.3146035,146.94,146.89,6.80781537]
[1768342948361,0.63999229,146.95,146.89,6.80781537]
[1768342948756,0.63999229,146.95,146.89,30.1719573]
[1768342949061,6.3446035,146.96,146.9,6.3446035]
[1768342949264,6.3446035,146.99,146.92,6.3446035]
[1768342949561,7.53460355,147.0,146.93,6.3446035]
[1768342949865,6.3446035,146.99,146.92,6.3446035]
[1768342950062,7.01459579,146.97,146.89,24.10068326]
[1768342950239,0.66999229,146.97,146.91,6.3446035]
[1768342950439,7.01459579,146.97,146.91,6.3446035]
[1768342950746,0.66999229,146.97,146.91,6.3446035]
[1768342950947,0.66999229,146.97,146.89,36.34068326]
[1768342951148,0.66999229,146.97,146.92,6.80642526]
[1768342951449,7.01459579,146.97,146.91,13.15117776]
[1768342951650,7.01459579,146.97,146.91,30.16839918]
[1768342951651,0.66999229,146.97,146.91,30.16839918]
[1768342951846,1.19000005,147.0,146.96,6.3446035]
[1768342952053,1.19000005,147.0,146.91,57.85823853]
[1768342952054,0.66999229,146.99,146.94,6.3446035]
[1768342952745,0.66999229,146.99,146.92,12.24]
[1768342953045,0.66999229,146.99,146.94,6.3446035]
[1768342953344,1.19000005,147.0,146.95,13.14963922]
[1768342953555,1.19000005,147.0,146.96,6.3446035]
[1768342953744,1.19000005,147.0,146.95,23.81762503]
[1768342953945,1.19000005,147.0,146.95,6.80503572]
[1768342954467,1.19000005,147.0,146.95,30.16222853]
[1768342954844,1.19000005,147.0,146.95,23.81762503]
[1768342955161,1.19000005,147.0,146.95,30.16222853]
[1768342955369,1.19000005,147.0,146.96,6.3446035]
[1768342955747,1.19000005,147.0,146.9,0.27332946]
[1768342955748,11.91647896,146.99,146.9,0.27332946]
[1768342956060,1.19000005,147.0,146.95,30.16215243]
[1768342956265,1e-08,147.0,146.96,6.3446035]
[1768342956483,0.65598666,147.0,146.96,6.3446035]
[1768342957472,0.65598666,147.0,146.95,17.01258931]
[1768342957769,0.65598666,147.0,146.95,6.3446035]
[1768342957949,1e-08,147.0,146.97,6.3446035]
[1768342958153,1e-08,147.0,146.96,6.3446035]
[1768342958882,0.65598665,146.99,146.94,6.80549884]
[1768342959066,1e-08,147.0,146.94,13.15010234]
[1768342959373,1e-08,147.0,146.96,6.80457267]
[1768342961265,0.65598666,147.0,146.96,6.80457267]
[1768342961473,0.65598666,147.0,146.95,6.80487379]
[1768342961765,5.58130989,146.99,146.95,6.80487379]
[1768342961973,0.65598665,146.99,146.95,6.80487379]
[1768342962371,0.65598665,146.97,146.93,6.8055807]
[1768342962572,0.65598665,146.97,146.91,23.3613092]
[1768342962757,1e-08,147.0,146.91,23.3613092]
[1768342962758,7.00059015,146.96,146.93,6.80595468]
[1768342962960,0.65598665,146.96,146.93,6.80595468]
[1768342963159,0.65598665,146.96,146.91,17.0167057]
[1768342963361,0.65598665,146.96,146.92,6.80613284]
[1768342963561,0.65598665,146.95,146.91,6.80688857]
[1768342963876,7.00059015,146.94,146.85,0.70097251]
[1768342964082,7.00059015,146.94,146.9,6.80716817]
[1768342964259,6.97059015,146.94,146.9,6.80727147]
[1768342964573,0.62598665,146.94,146.9,6.80727147]
[1768342964978,0.62598665,146.94,146.89,6.80768068]
[1768342965166,0.62598665,146.94,146.9,6.80731605]
[1768342965475,1e-08,147.0,146.93,6.80596202]
[1768342965668,1e-08,147.0,146.92,6.80638914]
[1768342965669,6.3446035,146.98,146.92,6.80638914]
[1768342965876,11.2708979,146.97,146.91,6.3446035]
[1768342966070,4.9262944,146.96,146.91,6.3446035]
[1768342966273,0.65598665,146.97,146.91,6.3446035]
[1768342966480,0.65598665,146.95,146.91,6.3446035]
[1768342966779,0.65598665,146.95,146.91,6.80673954]
[1768342968186,0.65598665,146.95,146.91,13.15134304]
[1768342968964,0.65598665,146.95,146.91,6.80673954]
[1768342970389,0.65598666,147.0,146.93,0.70097251]
[1768342970591,0.65598666,147.0,146.97,6.3446035]
[1768342970592,4.92801361,146.99,146.97,6.3446035]
[1768342970761,1e-08,147.0,146.95,0.70097251]
[1768342970762,1e-08,147.0,146.96,6.3446035]
[1768342970961,1e-08,147.0,146.95,0.70097251]
[1768342971162,5.06211059,146.99,146.96,6.3446035]
[1768342971358,1e-08,147.0,146.97,6.3446035]